fUST/lending_fUST_20240728
["ID","MTS","AMOUNT","RATE_DAILY","PERIOD"]
[333409185,1722114648435,-500.0,0.00015342,2]
[333409187,1722114648446,-560.55,0.00015342,2]
[333409189,1722114648458,-500.0,0.00015342,2]
[333409191,1722114648470,-500.0,0.00015342,2]
[333409192,1722114648481,-500.0,0.00015342,2]
[333409194,1722114648491,-544.23,0.00015342,2]
[333409197,1722114648672,-500.0,0.00015342,2]
[333409198,1722114648686,-151.0,0.00015342,2]
[333409199,1722114648698,-430.713276,0.00015342,2]
[333409200,1722114648708,-151.0,0.00015342,2]
[333409201,1722114648720,-740.19,0.00015342,2]
[333409202,1722114648731,-151.0,0.00015342,2]
[333409203,1722114648741,-1210.94,0.00015342,2]
[333409204,1722114648751,-669.53,0.00015342,2]
[333409205,1722114648761,-695.19,0.00015342,2]
[333409206,1722114648772,-500.0,0.00015342,2]
[333409207,1722114648781,-151.0,0.00015342,2]
[333409208,1722114648791,-500.0,0.00015342,2]
[333409209,1722114648800,-500.0,0.00015342,2]
[333409210,1722114648810,-390.876822,0.00015342,2]
[333409211,1722114648821,-642.15,0.00015342,2]
[333409212,1722114648830,-390.876822,0.00015342,2]
[333409213,1722114648840,-4748.21,0.00015342,2]
[333409214,1722114648850,-1321.67,0.00015342,2]
[333409215,1722114648860,-500.0,0.00015342,2]
[333409216,1722114648870,-500.0,0.00015342,2]
[333409217,1722114648879,-1967.31,0.00015342,2]
[333409218,1722114648890,-625.4,0.00015342,2]
[333409219,1722114648899,-500.0,0.00015342,2]
[333409220,1722114648909,-868.72,0.00015342,2]
[333409221,1722114648919,-813.97,0.00015342,2]
[333409222,1722114648928,-151.0,0.00015342,2]
[333409223,1722114648938,-500.0,0.00015342,2]
[333409224,1722114648947,-500.0,0.00015342,2]
[333409225,1722114648957,-500.0,0.00015342,2]
[333409226,1722114648970,-500.0,0.00015342,2]
[333409227,1722114648979,-685.38,0.00015342,2]
[333409228,1722114648988,-1084.29,0.00015342,2]
[333409229,1722114648998,-526.26,0.00015342,2]
[333409230,1722114649008,-500.0,0.00015342,2]
[333409231,1722114649018,-500.0,0.00015342,2]
[333409232,1722114649028,-151.0,0.00015342,2]
[333409233,1722114649038,-578.21,0.00015342,2]
[333409234,1722114649048,-656.4,0.00015342,2]
[333409235,1722114649062,-1286.54,0.00015342,2]
[333409236,1722114649072,-3453.22,0.00015342,2]
[333409237,1722114649083,-666.58,0.00015342,2]
[333409238,1722114649093,-1981.48,0.00015342,2]
[333409239,1722114649102,-500.0,0.00015342,2]
[333409240,1722114649112,-500.0,0.00015342,2]
[333409241,1722114649123,-666.29,0.00015342,2]
[333409242,1722114649134,-151.0,0.00015342,2]
[333409243,1722114649143,-671.55,0.00015342,2]
[333409244,1722114649154,-151.0,0.00015342,2]
[333409245,1722114649164,-940.63,0.00015342,2]
[333409246,1722114649174,-500.0,0.00015342,2]
[333409247,1722114649184,-774.46,0.00015342,2]
[333409248,1722114649194,-669.85,0.00015342,2]
[333409249,1722114649206,-535.26,0.00015342,2]
[333409250,1722114649218,-582.19,0.00015342,2]
[333409251,1722114649228,-1490.28,0.00015342,2]
[333409252,1722114649237,-211.330312,0.00015342,2]
[333409253,1722114649248,-796.66,0.00015342,2]
[333409254,1722114649257,-211.330312,0.00015342,2]
[333409255,1722114649267,-584.45,0.00015342,2]
[333409256,1722114649277,-500.0,0.00015342,2]
[333409257,1722114649288,-703.54,0.00015342,2]
[333409258,1722114649298,-1187.73,0.00015342,2]
[333409259,1722114649308,-500.0,0.00015342,2]
[333409260,1722114649319,-2627.32,0.00015342,2]
[333409261,1722114649329,-879.02,0.00015342,2]
[333409262,1722114649339,-2887.0,0.0001535,2]
[333409263,1722114649349,-151.0,0.00015496,2]
[333409264,1722114649359,-1000.0,0.000155,2]
[333409265,1722114649369,-380.019708,0.00015506,2]
[333409266,1722114649379,-380.019708,0.00015506,2]
[333409267,1722114649391,-169.011078,0.00015506,2]
[333409268,1722114649402,-169.011078,0.00015506,2]
[333409269,1722114649416,-258.17877361,0.0001558,2]
[333409270,1722114649427,-10524.3484815,0.00015606,2]
[333409271,1722114649437,-500.0,0.00015616,2]
[333409272,1722114649448,-619.38,0.00015616,2]
[333409273,1722114649459,-151.0,0.00015616,2]
[333409274,1722114649472,-500.0,0.00015616,2]
[333409275,1722114649483,-151.0,0.00015616,2]
[333409276,1722114649493,-500.0,0.00015616,2]
[333409277,1722114649504,-500.0,0.00015616,2]
[333409278,1722114649516,-500.0,0.00015616,2]
[333409279,1722114649528,-500.0,0.00015616,2]
[333409280,1722114649539,-500.0,0.00015616,2]
[333409281,1722114649550,-576.75,0.00015616,2]
[333409282,1722114649560,-500.0,0.00015616,2]
[333409283,1722114649570,-500.0,0.00015616,2]
[333409284,1722114649582,-589.71,0.00015616,2]
[333409285,1722114649592,-500.0,0.00015616,2]
[333409286,1722114649603,-560.55,0.00015616,2]
[333409287,1722114649614,-500.0,0.00015616,2]
[333409288,1722114649624,-500.0,0.00015616,2]
[333409289,1722114649634,-500.0,0.00015616,2]
[333409290,1722114649644,-544.23,0.00015616,2]
[333409291,1722114649655,-500.0,0.00015616,2]
[333409292,1722114649666,-151.0,0.00015616,2]
[333409293,1722114649676,-430.713276,0.00015616,2]
[333409294,1722114649687,-740.19,0.00015616,2]
[333409295,1722114649702,-1210.94,0.00015616,2]
[333409296,1722114649714,-669.53,0.00015616,2]
[333409297,1722114649725,-695.19,0.00015616,2]
[333409298,1722114649735,-500.0,0.00015616,2]
[333409299,1722114649745,-500.0,0.00015616,2]
[333409300,1722114649757,-500.0,0.00015616,2]
[333409301,1722114649767,-151.0,0.00015616,2]
[333409302,1722114649780,-642.15,0.00015616,2]
[333409303,1722114649790,-4748.21,0.00015616,2]
[333409304,1722114649800,-1321.67,0.00015616,2]
[333409305,1722114649810,-500.0,0.00015616,2]
[333409306,1722114649820,-500.0,0.00015616,2]
[333409307,1722114649833,-151.0,0.00015616,2]
[333409308,1722114649847,-1967.31,0.00015616,2]
[333409309,1722114649857,-625.4,0.00015616,2]
[333409310,1722114649868,-500.0,0.00015616,2]
[333409311,1722114649879,-868.72,0.00015616,2]
[333409312,1722114649889,-813.97,0.00015616,2]
[333409313,1722114649900,-339.08427585,0.00015616,2]
[333409314,1722114649910,-500.0,0.00015616,2]
[333409315,1722114649921,-500.0,0.00015616,2]
[333409316,1722114649932,-500.0,0.00015616,2]
[333409317,1722114649942,-685.38,0.00015616,2]
[333409318,1722114649952,-1084.29,0.00015616,2]
[333409319,1722114649966,-526.26,0.00015616,2]
[333409320,1722114649977,-500.0,0.00015616,2]
[333409321,1722114649987,-500.0,0.00015616,2]
[333409322,1722114649998,-578.21,0.00015616,2]
[333409323,1722114650009,-656.4,0.00015616,2]
[333409324,1722114650019,-1286.54,0.00015616,2]
[333409325,1722114650028,-3453.22,0.00015616,2]
[333409326,1722114650039,-666.58,0.00015616,2]
[333409327,1722114650050,-1981.48,0.00015616,2]
[333409328,1722114650060,-500.0,0.00015616,2]
[333409329,1722114650070,-500.0,0.00015616,2]
[333409330,1722114650080,-666.29,0.00015616,2]
[333409331,1722114650090,-671.55,0.00015616,2]
[333409332,1722114650100,-940.63,0.00015616,2]
[333409333,1722114650109,-500.0,0.00015616,2]
[333409334,1722114650119,-774.46,0.00015616,2]
[333409335,1722114650130,-669.85,0.00015616,2]
[333409336,1722114650139,-535.26,0.00015616,2]
[333409337,1722114650149,-582.19,0.00015616,2]
[333409338,1722114650158,-1490.28,0.00015616,2]
[333409339,1722114650168,-796.66,0.00015616,2]
[333409340,1722114650179,-584.45,0.00015616,2]
[333409341,1722114650190,-500.0,0.00015616,2]
[333409342,1722114650200,-703.54,0.00015616,2]
[333409343,1722114650210,-1187.73,0.00015616,2]
[333409344,1722114650222,-500.0,0.00015616,2]
[333409345,1722114650231,-2627.32,0.00015616,2]
[333409346,1722114650242,-879.02,0.00015616,2]
[333409347,1722114650252,-151.0,0.00015697,2]
[333409348,1722114650262,-151.0,0.00015697,2]
[333409349,1722114650271,-211.330312,0.00015697,2]
[333409350,1722114650281,-211.330312,0.00015697,2]
[333409351,1722114650292,-10524.3484815,0.00015697,2]
[333409352,1722114650303,-10524.3484815,0.00015698,2]
[333409353,1722114650314,-52621.7424076,0.00015698,2]
[333409354,1722114650324,-151.0,0.00015698,2]
[333409355,1722114650337,-380.019708,0.00015698,2]
[333409356,1722114650348,-380.019708,0.00015698,2]
[333409357,1722114650359,-169.011078,0.00015698,2]
[333409358,1722114650371,-169.011078,0.00015698,2]
[333409359,1722114650381,-160.2,0.00015698,2]
[333409360,1722114650391,-151.0,0.00015698,2]
[333409361,1722114650401,-168.569504,0.00015698,2]
[333409362,1722114650411,-151.0,0.00015698,2]
[333409363,1722114650421,-390.876822,0.00015698,2]
[333409364,1722114650431,-390.876822,0.00015698,2]
[333409365,1722114650441,-151.0,0.00015698,2]
[333409366,1722114650450,-151.0,0.00015698,2]
[333409367,1722114650460,-536.8839689,0.00015699,2]
[333409368,1722114650471,-44219.01333758,0.00015708,5]
[333409369,1722114650480,-4076.35082233,0.00015708,2]
[333409370,1722114650489,-15121.57867601,0.00015708,3]
[333409371,1722114650499,-1700.63075344,0.00015708,2]
[333409372,1722114650508,-3183.92326098,0.00015708,2]
[333409373,1722114650519,-33300.13958783,0.00015708,2]
[333409374,1722114650529,-1639.79897503,0.00015708,2]
[333409375,1722114650539,-1400.25988373,0.00015708,2]
[333409376,1722114650548,-4059.67777645,0.00015708,2]
[333409377,1722114650558,-2699.30820958,0.00015708,2]
[333409378,1722114650577,-24179.98284591,0.00015708,2]
[333409379,1722114650588,-6877.72642059,0.00015708,2]
[333409380,1722114650597,-9627.07103897,0.00015708,2]
[333409381,1722114650607,-2676.31603972,0.00015708,2]
[333409382,1722114650618,-3311.20225413,0.00015708,2]
[333409383,1722114650627,-14643.56741975,0.00015708,2]
[333409384,1722114650637,-7387.62885178,0.00015708,2]
[333409385,1722114650648,-13880.99092693,0.00015708,2]
[333409386,1722114650657,-1500.0,0.00015708,2]
[333409387,1722114650669,-7108.75747956,0.00015708,2]
[333409388,1722114650680,-3619.22399415,0.00015708,2]
[333409389,1722114650693,-10605.75046511,0.00015708,2]
[333409390,1722114650703,-95538.74070453,0.00015708,2]
[333409391,1722114650715,-81236.64333245,0.00015708,2]
[333409392,1722114650726,-1197.78855489,0.00015708,2]
[333409393,1722114650735,-151.0,0.00015708,2]
[333409394,1722114650746,-151.0,0.00015708,2]
[333409395,1722114650758,-380.019708,0.00015708,2]
[333409396,1722114650768,-380.019708,0.00015708,2]
[333409397,1722114650779,-380.019708,0.00015708,2]
[333409398,1722114650789,-380.019708,0.00015708,2]
[333409399,1722114650799,-169.011078,0.00015708,2]
[333409400,1722114650809,-169.011078,0.00015708,2]
[333409401,1722114650819,-169.011078,0.00015708,2]
[333409402,1722114650829,-169.011078,0.00015708,2]
[333409403,1722114650842,-151.0,0.00015708,2]
[333409404,1722114650853,-270.18869,0.00015708,2]
[333409405,1722114650863,-430.713276,0.00015708,2]
[333409406,1722114650873,-430.713276,0.00015708,2]
[333409407,1722114650883,-430.713276,0.00015708,2]
[333409408,1722114650892,-151.0,0.00015708,2]
[333409409,1722114650902,-151.0,0.00015708,2]
[333409410,1722114650912,-299.249422,0.00015708,2]
[333409411,1722114650922,-170.144468,0.00015708,2]
[333409412,1722114650932,-390.876822,0.00015708,2]
[333409413,1722114650942,-390.876822,0.00015708,2]
[333409414,1722114650952,-390.876822,0.00015708,2]
[333409415,1722114650962,-151.0,0.00015708,2]
[333409416,1722114650972,-151.0,0.00015708,2]
[333409417,1722114650983,-151.0,0.00015708,2]
[333409418,1722114650993,-390.876822,0.00015708,2]
[333409419,1722114651003,-390.876822,0.00015708,2]
[333409420,1722114651013,-390.876822,0.00015708,2]
[333409421,1722114651023,-151.0,0.00015708,2]
[333409422,1722114651033,-151.0,0.00015708,2]
[333409423,1722114651043,-151.0,0.00015708,2]
[333409424,1722114651052,-151.0,0.00015708,2]
[333409425,1722114651063,-151.0,0.00015708,2]
[333409426,1722114651072,-151.0,0.00015708,2]
[333409427,1722114651082,-151.0,0.00015708,2]
[333409428,1722114651091,-151.0,0.00015708,2]
[333409429,1722114651101,-151.0,0.00015708,2]
[333409430,1722114651111,-159.520914,0.00015708,2]
[333409431,1722114651120,-211.330312,0.00015708,2]
[333409432,1722114651130,-211.330312,0.00015708,2]
[333409433,1722114651140,-211.330312,0.00015708,2]
[333409434,1722114651150,-211.330312,0.00015708,2]
[333409435,1722114651159,-211.330312,0.00015708,2]
[333409436,1722114651169,-211.330312,0.00015708,2]
[333409437,1722114651179,-67176.6485784,0.00015709,2]
[333409438,1722114651189,-71694.33251365,0.00015709,2]
[333409439,1722114651200,-380.019708,0.00015709,2]
[333409440,1722114651210,-380.019708,0.00015709,2]
[333409441,1722114651223,-169.011078,0.00015709,2]
[333409442,1722114651233,-169.011078,0.00015709,2]
[333409443,1722114651243,-430.713276,0.00015709,2]
[333409444,1722114651253,-430.713276,0.00015709,2]
[333409445,1722114651263,-390.876822,0.00015709,2]
[333409446,1722114651273,-151.0,0.00015709,2]
[333409447,1722114651283,-390.876822,0.00015709,2]
[333409448,1722114651293,-151.0,0.00015709,2]
[333409449,1722114651303,-151.0,0.00015709,2]
[333409450,1722114651313,-211.330312,0.00015709,2]
[333409451,1722114651322,-211.330312,0.00015709,2]
[333409452,1722114651332,-78029.40685607,0.00015711,2]
[333409453,1722114651342,-1108.12907843,0.00015712,2]
[333409454,1722114651352,-951.25132742,0.00015712,2]
[333409455,1722114651363,-1091.00549478,0.00015712,2]
[333409456,1722114651372,-151.0,0.00015746,2]
[333409457,1722114651382,-211.330312,0.00015746,2]
[333409458,1722114651391,-211.330312,0.00015746,2]
[333409459,1722114651401,-153.94863244,0.000158,2]
[333409460,1722114651411,-620.00462245,0.00015853,2]
[333409461,1722114651421,-500.0,0.0001589,2]
[333409462,1722114651431,-619.38,0.0001589,2]
[333409463,1722114651442,-500.0,0.0001589,2]
[333409464,1722114651452,-380.019708,0.0001589,2]
[333409465,1722114651464,-380.019708,0.0001589,2]
[333409466,1722114651473,-500.0,0.0001589,2]
[333409467,1722114651483,-500.0,0.0001589,2]
[333409468,1722114651492,-500.0,0.0001589,2]
[333409469,1722114651502,-500.0,0.0001589,2]
[333409470,1722114651511,-500.0,0.0001589,2]
[333409471,1722114651521,-576.75,0.0001589,2]
[333409472,1722114651530,-500.0,0.0001589,2]
[333409473,1722114651539,-169.011078,0.0001589,2]
[333409474,1722114651549,-500.0,0.0001589,2]
[333409475,1722114651559,-169.011078,0.0001589,2]
[333409476,1722114651568,-589.71,0.0001589,2]
[333409477,1722114651578,-500.0,0.0001589,2]
[333409478,1722114651587,-560.55,0.0001589,2]
[333409479,1722114651597,-500.0,0.0001589,2]
[333409480,1722114651607,-500.0,0.0001589,2]
[333409481,1722114651616,-500.0,0.0001589,2]
[333409482,1722114651626,-544.23,0.0001589,2]
[333409483,1722114651635,-500.0,0.0001589,2]
[333409484,1722114651645,-430.713276,0.0001589,2]
[333409485,1722114651654,-430.713276,0.0001589,2]
[333409486,1722114651664,-740.19,0.0001589,2]
[333409487,1722114651674,-1210.94,0.0001589,2]
[333409488,1722114651685,-669.53,0.0001589,2]
[333409489,1722114651698,-695.19,0.0001589,2]
[333409490,1722114651708,-500.0,0.0001589,2]
[333409491,1722114651719,-500.0,0.0001589,2]
[333409492,1722114651730,-500.0,0.0001589,2]
[333409493,1722114651867,-390.876822,0.0001589,2]
[333409494,1722114651889,-642.15,0.0001589,2]
[333409495,1722114651899,-151.0,0.0001589,2]
[333409496,1722114651908,-390.876822,0.0001589,2]
[333409497,1722114651918,-4748.21,0.0001589,2]
[333409498,1722114651927,-1321.67,0.0001589,2]
[333409499,1722114651938,-500.0,0.0001589,2]
[333409500,1722114651949,-500.0,0.0001589,2]
[333409501,1722114651959,-151.0,0.0001589,2]
[333409502,1722114651972,-1967.31,0.0001589,2]
[333409503,1722114651982,-625.4,0.0001589,2]
[333409504,1722114651991,-500.0,0.0001589,2]
[333409505,1722114652000,-868.72,0.0001589,2]
[333409506,1722114652010,-813.97,0.0001589,2]
[333409507,1722114652019,-500.0,0.0001589,2]
[333409508,1722114652029,-500.0,0.0001589,2]
[333409509,1722114652038,-500.0,0.0001589,2]
[333409510,1722114652048,-685.38,0.0001589,2]
[333409511,1722114652057,-1084.29,0.0001589,2]
[333409512,1722114652067,-526.26,0.0001589,2]
[333409513,1722114652076,-500.0,0.0001589,2]
[333409514,1722114652086,-500.0,0.0001589,2]
[333409515,1722114652095,-578.21,0.0001589,2]
[333409516,1722114652105,-656.4,0.0001589,2]
[333409517,1722114652114,-1286.54,0.0001589,2]
[333409518,1722114652124,-3453.22,0.0001589,2]
[333409519,1722114652135,-666.58,0.0001589,2]
[333409520,1722114652145,-1981.48,0.0001589,2]
[333409521,1722114652156,-500.0,0.0001589,2]
[333409522,1722114652166,-500.0,0.0001589,2]
[333409523,1722114652175,-666.29,0.0001589,2]
[333409524,1722114652185,-671.55,0.0001589,2]
[333409525,1722114652194,-940.63,0.0001589,2]
[333409526,1722114652204,-500.0,0.0001589,2]
[333409527,1722114652216,-774.46,0.0001589,2]
[333409528,1722114652225,-669.85,0.0001589,2]
[333409529,1722114652235,-535.26,0.0001589,2]
[333409530,1722114652245,-582.19,0.0001589,2]
[333409531,1722114652254,-1490.28,0.0001589,2]
[333409532,1722114652263,-796.66,0.0001589,2]
[333409533,1722114652273,-584.45,0.0001589,2]
[333409534,1722114652284,-500.0,0.0001589,2]
[333409535,1722114652294,-703.54,0.0001589,2]
[333409536,1722114652304,-1187.73,0.0001589,2]
[333409537,1722114652314,-500.0,0.0001589,2]
[333409538,1722114652323,-2627.32,0.0001589,2]
[333409539,1722114652333,-879.02,0.0001589,2]
[333409540,1722114652343,-206.7714858,0.0001589,2]
[333409541,1722114652353,-160.0,0.00015934,3]
[333409542,1722114652363,-1000.0,0.00016,16]
[333409543,1722114652373,-1000.0,0.00016,2]
[333409544,1722114652383,-1025.661591,0.00016038,2]
[333409545,1722114652392,-500.0,0.00016164,2]
[333409546,1722114652404,-619.38,0.00016164,2]
[333409547,1722114652413,-500.0,0.00016164,2]
[333409548,1722114652423,-500.0,0.00016164,2]
[333409549,1722114652432,-500.0,0.00016164,2]
[333409550,1722114652441,-500.0,0.00016164,2]
[333409551,1722114652451,-500.0,0.00016164,2]
[333409552,1722114652460,-500.0,0.00016164,2]
[333409553,1722114652472,-576.75,0.00016164,2]
[333409554,1722114652481,-500.0,0.00016164,2]
[333409555,1722114652491,-500.0,0.00016164,2]
[333409556,1722114652500,-589.71,0.00016164,2]
[333409557,1722114652510,-500.0,0.00016164,2]
[333409558,1722114652519,-560.55,0.00016164,2]
[333409559,1722114652528,-500.0,0.00016164,2]
[333409560,1722114652538,-500.0,0.00016164,2]
[333409561,1722114652547,-500.0,0.00016164,2]
[333409562,1722114652557,-544.23,0.00016164,2]
[333409563,1722114652566,-500.0,0.00016164,2]
[333409564,1722114652576,-430.713276,0.00016164,2]
[333409565,1722114652585,-430.71327091,0.00016164,2]
[333409566,1722114652594,-740.19,0.00016164,2]
[333409567,1722114652604,-1210.94,0.00016164,2]
[333409568,1722114652614,-669.53,0.00016164,2]
[333409569,1722114652624,-695.19,0.00016164,2]
[333409570,1722114652634,-500.0,0.00016164,2]
[333409571,1722114652643,-500.0,0.00016164,2]
[333409572,1722114652652,-326.93579326,0.00016164,2]
[333409573,1722114652661,-390.876822,0.00016164,2]
[333409574,1722114652670,-642.15,0.00016164,2]
[333409575,1722114652679,-151.0,0.00016164,2]
[333409576,1722114652692,-390.876823,0.00016164,2]
[333409577,1722114652701,-4748.21,0.00016164,2]
[333409578,1722114652710,-1321.67,0.00016164,2]
[333409579,1722114652720,-500.0,0.00016164,2]
[333409580,1722114652730,-500.0,0.00016164,2]
[333409581,1722114652742,-151.0,0.00016164,2]
[333409582,1722114652753,-1967.31,0.00016164,2]
[333409583,1722114652765,-625.4,0.00016164,2]
[333409584,1722114652775,-500.0,0.00016164,2]
[333409585,1722114652784,-868.72,0.00016164,2]
[333409586,1722114652794,-813.97,0.00016164,2]
[333409587,1722114652803,-500.0,0.00016164,2]
[333409588,1722114652813,-500.0,0.00016164,2]
[333409589,1722114652824,-500.0,0.00016164,2]
[333409590,1722114652835,-685.38,0.00016164,2]
[333409591,1722114652847,-1084.29,0.00016164,2]
[333409592,1722114652860,-526.26,0.00016164,2]
[333409593,1722114652869,-500.0,0.00016164,2]
[333409594,1722114652881,-500.0,0.00016164,2]
[333409595,1722114652892,-578.21,0.00016164,2]
[333409596,1722114652901,-656.4,0.00016164,2]
[333409597,1722114652911,-1286.54,0.00016164,2]
[333409598,1722114652920,-3453.22,0.00016164,2]
[333409599,1722114652930,-666.58,0.00016164,2]
[333409600,1722114652939,-1981.48,0.00016164,2]
[333409601,1722114652949,-500.0,0.00016164,2]
[333409602,1722114652959,-500.0,0.00016164,2]
[333409603,1722114652970,-666.29,0.00016164,2]
[333409604,1722114652981,-151.0,0.00016164,2]
[333409605,1722114652990,-671.55,0.00016164,2]
[333409606,1722114653002,-940.63,0.00016164,2]
[333409607,1722114653012,-500.0,0.00016164,2]
[333409608,1722114653021,-774.46,0.00016164,2]
[333409609,1722114653031,-669.85,0.00016164,2]
[333409610,1722114653041,-535.26,0.00016164,2]
[333409611,1722114653051,-582.19,0.00016164,2]
[333409612,1722114653061,-1490.28,0.00016164,2]
[333409613,1722114653070,-211.330312,0.00016164,2]
[333409614,1722114653080,-796.66,0.00016164,2]
[333409615,1722114653089,-211.33032,0.00016164,2]
[333409616,1722114653099,-584.45,0.00016164,2]
[333409617,1722114653108,-500.0,0.00016164,2]
[333409618,1722114653118,-703.54,0.00016164,2]
[333409619,1722114653128,-1187.73,0.00016164,2]
[333409620,1722114653137,-500.0,0.00016164,2]
[333409621,1722114653147,-2627.32,0.00016164,2]
[333409622,1722114653156,-879.02,0.00016164,2]
[333409623,1722114653166,-153.0,0.00016284,2]
[333409624,1722114653175,-153.0,0.00016284,2]
[333409625,1722114653185,-153.0,0.00016284,2]
[333409626,1722114653195,-160.0,0.00016421,4]
[333409627,1722114653204,-500.0,0.00016438,2]
[333409628,1722114653216,-619.38,0.00016438,2]
[333409629,1722114653226,-500.0,0.00016438,2]
[333409630,1722114653235,-380.019708,0.00016438,2]
[333409631,1722114653248,-380.019708,0.00016438,2]
[333409632,1722114653261,-500.0,0.00016438,2]
[333409633,1722114653276,-500.0,0.00016438,2]
[333409634,1722114653289,-500.0,0.00016438,2]
[333409635,1722114653302,-500.0,0.00016438,2]
[333409636,1722114653312,-367.10875511,0.00016438,2]
[333409637,1722114653324,-576.75,0.00016438,2]
[333409638,1722114653337,-500.0,0.00016438,2]
[333409639,1722114653349,-500.0,0.00016438,2]
[333409640,1722114653362,-169.011078,0.00016438,2]
[333409641,1722114653374,-169.011078,0.00016438,2]
[333409642,1722114653387,-589.71,0.00016438,2]
[333409643,1722114653399,-500.0,0.00016438,2]
[333409644,1722114653412,-560.55,0.00016438,2]
[333409645,1722114653425,-500.0,0.00016438,2]
[333409646,1722114653439,-500.0,0.00016438,2]
[333409647,1722114653452,-500.0,0.00016438,2]
[333409648,1722114653463,-544.23,0.00016438,2]
[333409649,1722114653475,-500.0,0.00016438,2]
[333409650,1722114653487,-501.9,0.00016438,2]
[333409651,1722114653499,-740.19,0.00016438,2]
[333409652,1722114653512,-1210.94,0.00016438,2]
[333409653,1722114653523,-669.53,0.00016438,2]
[333409654,1722114653536,-695.19,0.00016438,2]
[333409655,1722114653549,-500.0,0.00016438,2]
[333409656,1722114653562,-500.0,0.00016438,2]
[333409657,1722114653575,-642.15,0.00016438,2]
[333409658,1722114653587,-4748.21,0.00016438,2]
[333409659,1722114653600,-1321.67,0.00016438,2]
[333409660,1722114653613,-500.0,0.00016438,2]
[333409661,1722114653625,-500.0,0.00016438,2]
[333409662,1722114653638,-1967.31,0.00016438,2]
[333409663,1722114653651,-625.4,0.00016438,2]
[333409664,1722114653664,-500.0,0.00016438,2]
[333409665,1722114653677,-868.72,0.00016438,2]
[333409666,1722114653693,-813.97,0.00016438,2]
[333409667,1722114653706,-500.0,0.00016438,2]
[333409668,1722114653718,-500.0,0.00016438,2]
[333409669,1722114653730,-500.0,0.00016438,2]
[333409670,1722114653741,-685.38,0.00016438,2]
[333409671,1722114653755,-1084.29,0.00016438,2]
[333409672,1722114653769,-526.26,0.00016438,2]
[333409673,1722114653782,-500.0,0.00016438,2]
[333409674,1722114653793,-500.0,0.00016438,2]
[333409675,1722114653803,-578.21,0.00016438,2]
[333409676,1722114653816,-656.4,0.00016438,2]
[333409677,1722114653827,-1286.54,0.00016438,2]
[333409678,1722114653840,-3453.22,0.00016438,2]
[333409679,1722114653853,-666.58,0.00016438,2]
[333409680,1722114653865,-1981.48,0.00016438,2]
[333409681,1722114653875,-500.0,0.00016438,2]
[333409682,1722114653886,-666.29,0.00016438,2]
[333409683,1722114653897,-500.0,0.00016438,2]
[333409684,1722114653910,-671.55,0.00016438,2]
[333409685,1722114653921,-940.63,0.00016438,2]
[333409686,1722114653933,-500.0,0.00016438,2]
[333409687,1722114653944,-774.46,0.00016438,2]
[333409688,1722114653955,-669.85,0.00016438,2]
[333409689,1722114653966,-535.26,0.00016438,2]
[333409690,1722114653979,-582.19,0.00016438,2]